fUSD/lending_fUSD_20240212
["ID","MTS","AMOUNT","RATE_DAILY","PERIOD"]
[313812854,1707735049153,-500.0,0.00022678,2]
[313812856,1707735049162,-500.0,0.00022678,2]
[313812858,1707735049171,-500.0,0.00022678,2]
[313812860,1707735049180,-526.84,0.00022678,2]
[313812861,1707735049190,-1740.03,0.00022678,2]
[313812863,1707735049199,-500.0,0.00022678,2]
[313812865,1707735049208,-973.64,0.00022678,2]
[313812867,1707735049217,-6745.22,0.00022678,2]
[313812868,1707735049226,-509.25,0.00022678,2]
[313812870,1707735049235,-500.0,0.00022678,2]
[313812872,1707735049244,-500.0,0.00022678,2]
[313812874,1707735049253,-500.0,0.00022678,2]
[313812876,1707735049262,-505.12,0.00022678,2]
[313812878,1707735049271,-500.0,0.00022678,2]
[313812880,1707735049283,-1092.67,0.00022678,2]
[313812882,1707735049292,-2684.85,0.00022678,2]
[313812884,1707735049301,-500.0,0.00022678,2]
[313812886,1707735049310,-529.57,0.00022678,2]
[313812887,1707735049320,-500.0,0.00022678,2]
[313812889,1707735049329,-602.36,0.00022678,2]
[313812891,1707735049339,-864.29,0.00022678,2]
[313812893,1707735049348,-500.0,0.00022678,2]
[313812895,1707735049357,-500.0,0.00022678,2]
[313812896,1707735049366,-500.0,0.00022678,2]
[313812898,1707735049376,-500.0,0.00022678,2]
[313812900,1707735049384,-500.0,0.00022678,2]
[313812902,1707735049393,-2142.06,0.00022678,2]
[313812904,1707735049402,-528598.21886199,0.00022679,2]
[313812906,1707735049411,-240.34268855,0.00022679,2]
[313812908,1707735049420,-500.0,0.00022679,2]
[313812910,1707735049429,-500.0,0.00022679,2]
[313812912,1707735049443,-500.0,0.00022679,2]
[313812914,1707735049451,-500.0,0.00022679,2]
[313812915,1707735049460,-500.0,0.00022679,2]
[313812917,1707735049470,-500.0,0.00022679,2]
[313812919,1707735049480,-500.0,0.00022679,2]
[313812921,1707735049489,-253.61058326,0.00022679,2]
[313812923,1707735049498,-500.0,0.00022679,2]
[313812925,1707735049507,-500.0,0.00022679,2]
[313812927,1707735049518,-610.5220024,0.00022679,2]
[313812929,1707735049527,-583.08150634,0.00022679,2]
[313812930,1707735049536,-500.0,0.00022679,2]
[313812932,1707735049546,-500.0,0.00022679,2]
[313812934,1707735049554,-547.18105431,0.00022679,2]
[313812936,1707735049564,-500.0,0.00022679,2]
[313812938,1707735049573,-500.0,0.00022679,2]
[313812940,1707735049582,-500.0,0.00022679,2]
[313812942,1707735049591,-500.0,0.00022679,2]
[313812944,1707735049601,-500.0,0.00022679,2]
[313812945,1707735049609,-500.0,0.00022679,2]
[313812947,1707735049618,-548.4,0.00022679,2]
[313812949,1707735049627,-500.0,0.00022679,2]
[313812951,1707735049636,-500.0,0.00022679,2]
[313812953,1707735049645,-500.0,0.00022679,2]
[313812955,1707735049655,-607.03094305,0.00022679,2]
[313812957,1707735049664,-500.0,0.00022679,2]
[313812959,1707735049673,-500.0,0.00022679,2]
[313812960,1707735049682,-500.0,0.00022679,2]
[313812962,1707735049691,-520.24560856,0.00022679,2]
[313812964,1707735049700,-500.0,0.00022679,2]
[313812966,1707735049709,-500.0,0.00022679,2]
[313812968,1707735049719,-677.22,0.00022679,2]
[313812970,1707735049729,-544.02,0.00022679,2]
[313812972,1707735049738,-238.13435763,0.00022679,2]
[313812974,1707735049747,-500.0,0.00022679,2]
[313812976,1707735049756,-500.0,0.00022679,2]
[313812977,1707735049765,-500.0,0.00022679,2]
[313812979,1707735049775,-500.0,0.00022679,2]
[313812981,1707735049785,-500.0,0.00022679,2]
[313812983,1707735049795,-500.0,0.00022679,2]
[313812985,1707735049804,-559.07,0.00022679,2]
[313812987,1707735049813,-500.0,0.00022679,7]
[313812989,1707735049823,-500.0,0.00022679,2]
[313812991,1707735049832,-500.0,0.00022679,2]
[313812993,1707735049841,-500.0,0.00022679,2]
[313812995,1707735049850,-500.0,0.00022679,2]
[313812997,1707735049859,-543.92,0.00022679,2]
[313812998,1707735049869,-570.54,0.00022679,2]
[313813000,1707735049879,-500.0,0.00022679,2]
[313813002,1707735049890,-500.0,0.00022679,2]
[313813004,1707735049900,-500.0,0.00022679,2]
[313813006,1707735049909,-536.03,0.00022679,2]
[313813008,1707735049921,-500.0,0.00022679,2]
[313813010,1707735049931,-500.0,0.00022679,2]
[313813012,1707735049941,-500.0,0.00022679,2]
[313813014,1707735049952,-500.0,0.00022679,2]
[313813016,1707735049962,-500.0,0.00022679,2]
[313813018,1707735049971,-500.0,0.00022679,2]
[313813020,1707735049981,-533.07,0.00022679,2]
[313813022,1707735049990,-500.0,0.00022679,2]
[313813024,1707735050000,-500.0,0.00022679,2]
[313813026,1707735050009,-560.10419399,0.00022679,2]
[313813027,1707735050019,-500.0,0.00022679,2]
[313813029,1707735050028,-574.77,0.00022679,2]
[313813031,1707735050037,-500.0,0.00022679,2]
[313813033,1707735050048,-500.0,0.00022679,2]
[313813034,1707735050058,-168.73319266,0.00022679,2]
[313813035,1707735050067,-871.23,0.00022679,2]
[313813036,1707735050078,-500.0,0.00022679,2]
[313813037,1707735050088,-500.0,0.00022679,2]
[313813038,1707735050097,-500.0,0.00022679,2]
[313813039,1707735050107,-643.11,0.00022679,2]
[313813040,1707735050117,-500.0,0.00022679,2]
[313813041,1707735050126,-952.45,0.00022679,2]
[313813042,1707735050137,-500.0,0.00022679,2]
[313813043,1707735050147,-500.0,0.00022679,2]
[313813044,1707735050157,-500.0,0.00022679,2]
[313813045,1707735050167,-500.0,0.00022679,2]
[313813046,1707735050176,-706.8,0.00022679,2]
[313813048,1707735050186,-500.0,0.00022679,2]
[313813049,1707735050196,-501.21847742,0.00022679,2]
[313813051,1707735050206,-972.12,0.00022679,2]
[313813053,1707735050215,-500.0,0.00022679,2]
[313813054,1707735050225,-740.12,0.00022679,2]
[313813056,1707735050235,-768.67,0.00022679,2]
[313813059,1707735050245,-500.0,0.00022679,2]
[313813061,1707735050255,-500.0,0.00022679,2]
[313813063,1707735050264,-500.0,0.00022679,2]
[313813065,1707735050273,-507.83,0.00022679,2]
[313813067,1707735050283,-653.17,0.00022679,2]
[313813069,1707735050293,-500.0,0.00022679,2]
[313813071,1707735050302,-500.0,0.00022679,2]
[313813073,1707735050312,-882.98,0.00022679,2]
[313813075,1707735050321,-500.0,0.00022679,2]
[313813077,1707735050331,-500.0,0.00022679,2]
[313813079,1707735050342,-500.0,0.00022679,2]
[313813081,1707735050353,-515.82,0.00022679,2]
[313813083,1707735050363,-151.01774096,0.00022679,2]
[313813085,1707735050373,-500.0,0.00022679,2]
[313813087,1707735050383,-500.0,0.00022679,2]
[313813089,1707735050393,-500.0,0.00022679,2]
[313813091,1707735050402,-500.0,0.00022679,2]
[313813093,1707735050411,-500.0,0.00022679,2]
[313813095,1707735050421,-500.0,0.00022679,2]
[313813097,1707735050433,-500.0,0.00022679,2]
[313813099,1707735050444,-500.0,0.00022679,2]
[313813101,1707735050454,-531.36847545,0.00022679,2]
[313813103,1707735050463,-153.69489303,0.00022679,2]
[313813105,1707735050473,-179.71575737,0.00022679,2]
[313813107,1707735050483,-150.0,0.00022679,2]
[313813109,1707735050492,-500.0,0.00022679,2]
[313813111,1707735050502,-500.0,0.00022679,2]
[313813113,1707735050511,-500.0,0.00022679,2]
[313813115,1707735050523,-500.0,0.00022679,2]
[313813118,1707735050534,-500.0,0.00022679,2]
[313813120,1707735050543,-500.0,0.00022679,2]
[313813122,1707735050553,-500.0,0.00022679,2]
[313813124,1707735050562,-500.0,0.00022679,2]
[313813126,1707735050571,-500.0,0.00022679,2]
[313813128,1707735050581,-500.0,0.00022679,2]
[313813130,1707735050592,-500.0,0.00022679,2]
[313813132,1707735050602,-500.0,0.00022679,2]
[313813134,1707735050611,-500.0,0.00022679,2]
[313813136,1707735050621,-500.0,0.00022679,2]
[313813138,1707735050630,-500.0,0.00022679,2]
[313813140,1707735050640,-4432.79,0.00022679,2]
[313813142,1707735050649,-500.0,0.00022679,2]
[313813144,1707735050659,-500.0,0.00022679,2]
[313813146,1707735050668,-500.0,0.00022679,2]
[313813148,1707735050678,-500.0,0.00022679,2]
[313813150,1707735050688,-500.0,0.00022679,2]
[313813152,1707735050698,-500.0,0.00022679,2]
[313813154,1707735050708,-500.0,0.00022679,2]
[313813156,1707735050718,-500.0,0.00022679,2]
[313813159,1707735050728,-500.0,0.00022679,2]
[313813161,1707735050738,-500.0,0.00022679,2]
[313813163,1707735050748,-2834.27,0.00022679,2]
[313813165,1707735050757,-1272.24,0.00022679,2]
[313813167,1707735050767,-500.0,0.00022679,2]
[313813169,1707735050777,-500.0,0.00022679,2]
[313813171,1707735050786,-500.0,0.00022679,2]
[313813173,1707735050796,-500.0,0.00022679,2]
[313813175,1707735050806,-500.0,0.00022679,2]
[313813177,1707735050816,-500.0,0.00022679,2]
[313813179,1707735050825,-500.0,0.00022679,2]
[313813181,1707735050835,-519.45,0.00022679,2]
[313813183,1707735050844,-500.0,0.00022679,2]
[313813185,1707735050853,-500.0,0.00022679,2]
[313813187,1707735050863,-500.0,0.00022679,2]
[313813189,1707735050872,-500.0,0.00022679,2]
[313813191,1707735050881,-500.0,0.00022679,2]
[313813193,1707735050892,-500.0,0.00022679,2]
[313813195,1707735050902,-5024.21,0.00022679,2]
[313813197,1707735050913,-500.0,0.00022679,2]
[313813199,1707735050923,-500.0,0.00022679,2]
[313813201,1707735050933,-500.0,0.00022679,2]
[313813203,1707735050944,-500.0,0.00022679,2]
[313813205,1707735050954,-4933.54,0.00022679,2]
[313813207,1707735050963,-500.0,0.00022679,2]
[313813209,1707735050973,-555.59,0.00022679,2]
[313813211,1707735050984,-500.0,0.00022679,2]
[313813213,1707735050994,-500.0,0.00022679,2]
[313813215,1707735051005,-500.0,0.00022679,2]
[313813217,1707735051016,-500.0,0.00022679,2]
[313813219,1707735051025,-2897.97,0.00022679,2]
[313813221,1707735051036,-576.3695227,0.00022679,2]
[313813224,1707735051046,-500.0,0.00022679,2]
[313813226,1707735051055,-500.0,0.00022679,2]
[313813228,1707735051065,-500.0,0.00022679,2]
[313813230,1707735051075,-6201.98,0.00022679,2]
[313813232,1707735051084,-627.91749453,0.00022679,2]
[313813234,1707735051094,-500.0,0.00022679,2]
[313813236,1707735051104,-500.0,0.00022679,2]
[313813238,1707735051114,-2371.51,0.00022679,2]
[313813240,1707735051123,-500.0,0.00022679,2]
[313813242,1707735051133,-500.0,0.00022679,2]
[313813244,1707735051143,-500.0,0.00022679,2]
[313813246,1707735051153,-500.0,0.00022679,2]
[313813248,1707735051162,-500.0,0.00022679,2]
[313813250,1707735051172,-500.0,0.00022679,2]
[313813252,1707735051182,-500.0,0.00022679,2]
[313813254,1707735051192,-3045.48,0.00022679,2]
[313813256,1707735051203,-500.0,0.00022679,2]
[313813258,1707735051213,-500.0,0.00022679,2]
[313813260,1707735051223,-500.0,0.00022679,2]
[313813262,1707735051233,-500.0,0.00022679,2]
[313813264,1707735051243,-500.0,0.00022679,2]
[313813266,1707735051253,-500.0,0.00022679,2]
[313813269,1707735051263,-500.0,0.00022679,2]
[313813271,1707735051274,-500.0,0.00022679,2]
[313813273,1707735051284,-500.0,0.00022679,2]
[313813275,1707735051294,-1547.39,0.00022679,2]
[313813277,1707735051303,-500.0,0.00022679,2]
[313813279,1707735051313,-846.31,0.00022679,2]
[313813281,1707735051322,-4097.96,0.00022679,2]
[313813283,1707735051332,-500.0,0.00022679,2]
[313813285,1707735051342,-500.0,0.00022679,2]
[313813287,1707735051352,-500.0,0.00022679,2]
[313813289,1707735051362,-500.0,0.00022679,2]
[313813291,1707735051371,-500.0,0.00022679,2]
[313813293,1707735051382,-8400.87,0.00022679,2]
[313813295,1707735051391,-500.0,0.00022679,2]
[313813297,1707735051402,-535.65776001,0.00022679,2]
[313813299,1707735051412,-500.0,0.00022679,2]
[313813302,1707735051424,-500.0,0.00022679,2]
[313813304,1707735051437,-973.53,0.00022679,2]
[313813306,1707735051450,-504.62,0.00022679,2]
[313813308,1707735051461,-500.0,0.00022679,2]
[313813310,1707735051471,-500.0,0.00022679,2]
[313813312,1707735051482,-500.0,0.00022679,2]
[313813314,1707735051492,-500.0,0.00022679,2]
[313813316,1707735051503,-500.0,0.00022679,2]
[313813318,1707735051514,-2007.99,0.00022679,2]
[313813320,1707735051525,-500.0,0.00022679,2]
[313813322,1707735051535,-1445.04,0.00022679,2]
[313813324,1707735051545,-2108.56,0.00022679,2]
[313813326,1707735051555,-500.0,0.00022679,2]
[313813328,1707735051565,-500.0,0.00022679,2]
[313813330,1707735051576,-500.0,0.00022679,2]
[313813332,1707735051586,-500.0,0.00022679,2]
[313813334,1707735051596,-778.83,0.00022679,2]
[313813336,1707735051608,-500.0,0.00022679,2]
[313813338,1707735051617,-500.0,0.00022679,2]
[313813340,1707735051627,-500.0,0.00022679,2]
[313813342,1707735051637,-500.0,0.00022679,2]
[313813344,1707735051647,-500.0,0.00022679,2]
[313813347,1707735051657,-751.46,0.00022679,2]
[313813349,1707735051667,-678.75,0.00022679,2]
[313813351,1707735051677,-500.0,0.00022679,2]
[313813353,1707735051689,-500.0,0.00022679,2]
[313813355,1707735051699,-698.3,0.00022679,2]
[313813357,1707735051710,-500.0,0.00022679,2]
[313813359,1707735051720,-552.16,0.00022679,2]
[313813361,1707735051730,-500.0,0.00022679,2]
[313813363,1707735051740,-500.0,0.00022679,2]
[313813365,1707735051750,-500.0,0.00022679,2]
[313813367,1707735051760,-500.0,0.00022679,2]
[313813369,1707735051770,-2405.45,0.00022679,2]
[313813371,1707735051780,-522.7,0.00022679,2]
[313813373,1707735051790,-500.0,0.00022679,2]
[313813375,1707735051800,-500.0,0.00022679,2]
[313813378,1707735051810,-500.0,0.00022679,2]
[313813380,1707735051820,-500.0,0.00022679,2]
[313813382,1707735051830,-500.0,0.00022679,2]
[313813384,1707735051839,-1680.13,0.00022679,2]
[313813386,1707735051849,-500.0,0.00022679,2]
[313813388,1707735051859,-500.0,0.00022679,2]
[313813390,1707735051869,-500.0,0.00022679,2]
[313813392,1707735051878,-2942.77,0.00022679,2]
[313813394,1707735051888,-500.0,0.00022679,2]
[313813396,1707735051898,-4101.5,0.00022679,2]
[313813423,1707735052135,-365.58547336,0.00022679,2]
[313813425,1707735052145,-500.0,0.00022679,2]
[313813427,1707735052154,-500.0,0.00022679,2]
[313813429,1707735052164,-500.0,0.00022679,2]
[313813431,1707735052173,-500.0,0.00022679,2]
[313813433,1707735052183,-20031.68,0.00022679,2]
[313813435,1707735052194,-500.0,0.00022679,2]
[313813437,1707735052203,-5982.13,0.00022679,2]
[313813439,1707735052214,-156.12230947,0.00022679,2]
[313813441,1707735052223,-2670.94,0.00022679,2]
[313813443,1707735052233,-500.0,0.00022679,2]
[313813446,1707735052242,-500.0,0.00022679,2]
[313813448,1707735052252,-500.0,0.00022679,2]
[313813449,1707735052261,-500.0,0.00022679,2]
[313813451,1707735052271,-500.0,0.00022679,2]
[313813454,1707735052281,-500.0,0.00022679,2]
[313813456,1707735052291,-500.0,0.00022679,2]
[313813458,1707735052300,-2470.01,0.00022679,2]
[313813460,1707735052309,-500.0,0.00022679,2]
[313813462,1707735052318,-1147.39,0.00022679,2]
[313813464,1707735052328,-500.0,0.00022679,2]
[313813466,1707735052337,-500.0,0.00022679,2]
[313813467,1707735052347,-512.26,0.00022679,2]
[313813470,1707735052356,-500.0,0.00022679,2]
[313813472,1707735052365,-528.76,0.00022679,2]
[313813474,1707735052376,-689.37,0.00022679,2]
[313813476,1707735052385,-710.54,0.00022679,2]
[313813478,1707735052395,-500.0,0.00022679,2]
[313813480,1707735052404,-500.0,0.00022679,2]
[313813482,1707735052413,-7132.65,0.00022679,2]
[313813484,1707735052423,-500.0,0.00022679,2]
[313813485,1707735052433,-1207.55,0.00022679,2]
[313813488,1707735052446,-321.84,0.00022679,2]
[313813490,1707735052455,-500.0,0.00022679,2]
[313813492,1707735052464,-500.0,0.00022679,2]
[313813494,1707735052474,-500.0,0.00022679,2]
[313813496,1707735052483,-1690.53,0.00022679,2]
[313813498,1707735052493,-500.0,0.00022679,2]
[313813500,1707735052502,-500.0,0.00022679,2]
[313813501,1707735052511,-767.62,0.00022679,2]
[313813504,1707735052521,-304.32,0.00022679,2]
[313813506,1707735052530,-500.0,0.00022679,2]
[313813508,1707735052540,-306.92059143,0.00022679,2]
[313813510,1707735052549,-768.44,0.00022679,2]
[313813512,1707735052558,-500.0,0.00022679,2]
[313813514,1707735052567,-500.0,0.00022679,2]
[313813516,1707735052576,-2328.9,0.00022679,2]
[313813518,1707735052585,-500.0,0.00022679,2]
[313813520,1707735052595,-188.58746912,0.00022679,2]
[313813522,1707735052604,-6830.87,0.00022679,2]
[313813523,1707735052613,-500.0,0.00022679,2]
[313813525,1707735052622,-581.45,0.00022679,2]
[313813528,1707735052632,-500.0,0.00022679,2]
[313813530,1707735052641,-550.33,0.00022679,2]
[313813532,1707735052650,-500.0,0.00022679,2]
[313813534,1707735052659,-500.0,0.00022679,2]
[313813536,1707735052668,-2234.17,0.00022679,2]
[313813538,1707735052677,-1353.61,0.00022679,2]
[313813540,1707735052688,-589.69,0.00022679,2]
[313813541,1707735052698,-560.68183204,0.00022679,2]
[313813544,1707735052707,-500.0,0.00022679,2]
[313813546,1707735052716,-500.0,0.00022679,2]
[313813548,1707735052725,-500.0,0.00022679,2]
[313813550,1707735052734,-1145.24,0.00022679,2]
[313813552,1707735052743,-245.13957962,0.00022679,2]
[313813554,1707735052753,-996.07,0.00022679,2]
[313813555,1707735052762,-1751.56,0.00022679,2]
[313813557,1707735052771,-727.06,0.00022679,2]
[313813559,1707735052781,-500.0,0.00022679,2]
[313813561,1707735052790,-500.0,0.00022679,2]
[313813563,1707735052799,-1151.45,0.00022679,2]
[313813565,1707735052809,-843.89,0.00022679,2]
[313813567,1707735052819,-500.0,0.00022679,2]
[313813569,1707735052828,-500.0,0.00022679,2]
[313813571,1707735052837,-500.0,0.00022679,2]
[313813573,1707735052846,-500.0,0.00022679,2]
[313813575,1707735052856,-500.0,0.00022679,2]
[313813577,1707735052866,-1447.65,0.00022679,2]
[313813579,1707735052875,-500.0,0.00022679,2]
[313813581,1707735052884,-1232.65,0.00022679,2]
[313813583,1707735052893,-500.0,0.00022679,2]
[313813585,1707735052903,-500.0,0.00022679,2]
[313813587,1707735052912,-2805.58,0.00022679,2]
[313813589,1707735052922,-500.0,0.00022679,2]
[313813591,1707735052931,-500.0,0.00022679,2]
[313813592,1707735052942,-469.84,0.00022679,2]
[313813593,1707735052951,-596.29189342,0.00022679,2]
[313813594,1707735052961,-500.0,0.00022679,2]
[313813595,1707735052971,-500.0,0.00022679,2]
[313813596,1707735052980,-500.0,0.00022679,2]
[313813597,1707735052989,-500.0,0.00022679,2]
[313813599,1707735052999,-500.0,0.00022679,2]
[313813601,1707735053008,-500.0,0.00022679,2]
[313813603,1707735053017,-1190.91,0.00022679,2]
[313813605,1707735053026,-500.0,0.00022679,2]
[313813607,1707735053035,-500.0,0.00022679,2]
[313813608,1707735053044,-150.0,0.00022679,2]
[313813609,1707735053053,-9748.41,0.00022679,2]
[313813610,1707735053062,-899.12,0.00022679,2]
[313813611,1707735053072,-538.7677623,0.00022679,2]
[313813612,1707735053082,-2215.09,0.00022679,2]
[313813613,1707735053091,-620.29,0.00022679,2]
[313813614,1707735053100,-500.0,0.00022679,2]
[313813615,1707735053109,-500.0,0.00022679,2]
[313813616,1707735053119,-500.0,0.00022679,2]
[313813617,1707735053128,-500.0,0.00022679,2]
[313813618,1707735053138,-500.0,0.00022679,2]
[313813620,1707735053147,-500.0,0.00022679,2]
[313813621,1707735053156,-500.0,0.00022679,2]
[313813622,1707735053165,-600.94,0.00022679,2]
[313813623,1707735053175,-500.0,0.00022679,2]
[313813624,1707735053184,-500.0,0.00022679,2]
[313813625,1707735053196,-879.84,0.00022679,2]
[313813626,1707735053206,-572.36,0.00022679,2]
[313813627,1707735053216,-500.0,0.00022679,2]
[313813629,1707735053226,-500.0,0.00022679,2]
[313813630,1707735053235,-152.20334436,0.00022679,2]
[313813631,1707735053245,-2783.52,0.00022679,2]
[313813632,1707735053255,-500.0,0.00022679,2]
[313813633,1707735053264,-690.15,0.00022679,2]
[313813634,1707735053274,-910.37,0.00022679,2]
[313813635,1707735053283,-500.0,0.00022679,2]
[313813636,1707735053292,-960.48,0.00022679,2]
[313813637,1707735053302,-500.0,0.00022679,2]
[313813638,1707735053311,-532.88723653,0.00022679,2]
[313813639,1707735053321,-500.0,0.00022679,2]
[313813640,1707735053331,-500.0,0.00022679,2]
[313813641,1707735053341,-500.0,0.00022679,2]
[313813642,1707735053350,-163.46776023,0.00022679,2]
[313813643,1707735053360,-588.11,0.00022679,2]
[313813644,1707735053369,-767.89,0.00022679,2]
[313813645,1707735053378,-500.0,0.00022679,2]
[313813646,1707735053387,-500.0,0.00022679,2]
[313813647,1707735053397,-245.24528069,0.00022679,2]
[313813648,1707735053407,-788.8,0.00022679,2]
[313813649,1707735053416,-500.0,0.00022679,2]
[313813650,1707735053426,-2092.79,0.00022679,2]
[313813651,1707735053437,-500.0,0.00022679,2]
[313813652,1707735053448,-921.9,0.00022679,2]
[313813653,1707735053458,-2812.9,0.00022679,2]
[313813654,1707735053469,-500.0,0.00022679,2]
[313813655,1707735053482,-500.0,0.00022679,2]
[313813656,1707735053492,-8672.72,0.00022679,2]
[313813657,1707735053502,-1654.9,0.00022679,2]
[313813658,1707735053512,-500.0,0.00022679,2]
[313813659,1707735053521,-500.0,0.0002268,2]
[313813660,1707735053531,-576.21693755,0.0002268,2]
[313813661,1707735053540,-500.0,0.0002268,2]
[313813662,1707735053549,-500.0,0.0002268,2]
[313813663,1707735053558,-500.0,0.0002268,2]
[313813664,1707735053567,-500.0,0.0002268,2]
[313813665,1707735053577,-500.0,0.0002268,2]
[313813666,1707735053586,-500.0,0.0002268,2]
[313813667,1707735053595,-500.0,0.0002268,2]
[313813668,1707735053605,-500.0,0.0002268,2]
[313813669,1707735053614,-500.0,0.0002268,2]
[313813670,1707735053624,-500.0,0.0002268,2]
[313813671,1707735053633,-500.0,0.0002268,2]
[313813672,1707735053642,-500.0,0.0002268,2]
[313813673,1707735053651,-271.72191535,0.0002268,2]
[313813674,1707735053661,-500.0,0.0002268,2]
[313813675,1707735053670,-500.0,0.0002268,2]
[313813676,1707735053679,-500.0,0.0002268,2]
[313813677,1707735053688,-500.0,0.0002268,2]
[313813678,1707735053698,-500.0,0.0002268,2]
[313813679,1707735053707,-500.0,0.0002268,2]
[313813680,1707735053716,-500.0,0.0002268,2]
[313813681,1707735053727,-500.0,0.0002268,2]
[313813682,1707735053736,-500.0,0.0002268,2]
[313813683,1707735053745,-504.49667444,0.0002268,2]
[313813684,1707735053755,-500.0,0.0002268,2]
[313813685,1707735053764,-500.0,0.0002268,2]
[313813686,1707735053773,-500.0,0.0002268,2]
[313813687,1707735053783,-500.0,0.0002268,2]
[313813688,1707735053792,-595.54045968,0.0002268,2]
[313813689,1707735053802,-500.0,0.0002268,2]
[313813690,1707735053811,-500.0,0.0002268,2]
[313813691,1707735053821,-500.0,0.0002268,2]
[313813692,1707735053830,-500.0,0.0002268,2]
[313813693,1707735053839,-500.0,0.0002268,2]
[313813694,1707735053849,-500.0,0.0002268,2]
[313813695,1707735053858,-500.0,0.0002268,2]
[313813696,1707735053867,-500.0,0.0002268,2]
[313813697,1707735053877,-500.0,0.0002268,2]
[313813698,1707735053886,-500.0,0.0002268,2]
[313813699,1707735053895,-500.0,0.0002268,2]
[313813700,1707735053904,-500.0,0.0002268,2]
[313813701,1707735053913,-500.0,0.0002268,2]
[313813702,1707735053923,-500.0,0.0002268,2]
[313813703,1707735053932,-598.25554574,0.0002268,2]
[313813704,1707735053942,-500.0,0.0002268,2]
[313813705,1707735053951,-500.0,0.0002268,2]
[313813706,1707735053960,-500.0,0.0002268,2]
[313813707,1707735053970,-500.0,0.0002268,2]
[313813708,1707735053980,-500.0,0.0002268,2]
[313813709,1707735053989,-500.0,0.0002268,2]
[313813710,1707735053998,-500.0,0.0002268,2]
[313813711,1707735054008,-500.0,0.0002268,2]
[313813712,1707735054017,-500.0,0.0002268,2]
[313813713,1707735054026,-500.0,0.0002268,2]
[313813714,1707735054036,-500.0,0.0002268,2]
[313813715,1707735054045,-500.0,0.0002268,2]
[313813716,1707735054054,-500.0,0.0002268,2]
[313813717,1707735054064,-500.0,0.0002268,2]
[313813718,1707735054074,-500.0,0.0002268,2]
[313813719,1707735054083,-500.0,0.0002268,2]
[313813720,1707735054093,-250.0,0.0002268,2]
[313813721,1707735054102,-500.0,0.0002268,2]
[313813722,1707735054111,-500.0,0.0002268,2]
[313813723,1707735054121,-500.0,0.0002268,2]
[313813724,1707735054131,-500.0,0.0002268,2]
[313813725,1707735054141,-500.0,0.0002268,2]
[313813726,1707735054151,-500.0,0.0002268,2]
[313813727,1707735054161,-500.0,0.0002268,2]
[313813728,1707735054172,-500.0,0.0002268,2]
[313813729,1707735054182,-500.0,0.0002268,2]
[313813730,1707735054194,-500.0,0.0002268,2]
[313813731,1707735054204,-214.40775855,0.0002268,2]
[313813732,1707735054214,-500.0,0.0002268,2]